fUSD/lending_fUSD_20260314
["ID","MTS","AMOUNT","RATE_DAILY","PERIOD"]
[408363073,1773496250992,-208.46180981,0.00025,2]
[408363074,1773496251001,-1793.03849057,0.00025,2]
[408363075,1773496251010,-540.0,0.00025,2]
[408363076,1773496251019,-613.62266769,0.00025,2]
[408363077,1773496251028,-6969.25591675,0.00025,21]
[408363078,1773496251038,-168.06720369,0.00025,2]
[408363079,1773496251047,-172.01252193,0.00025,5]
[408363080,1773496251056,-1393.0,0.00025,2]
[408363081,1773496251065,-154.1201709,0.00025025,2]
[408363082,1773496251075,-204.6,0.00025097,2]
[408363083,1773496251084,-232.0,0.00025464,120]
[408363084,1773496251093,-500.0,0.00025535,2]
[408363085,1773496251103,-500.0,0.00025535,2]
[408363086,1773496251112,-620.0,0.00025535,2]
[408363087,1773496251121,-2463.0,0.00025535,2]
[408363088,1773496251131,-414.0,0.00025535,2]
[408363089,1773496251140,-3753.0,0.00025535,2]
[408363090,1773496251154,-375.832979,0.00025624,2]
[408363091,1773496251163,-151.0,0.00025624,2]
[408363092,1773496251173,-375.832979,0.00025624,2]
[408363093,1773496251182,-375.832979,0.00025624,2]
[408363094,1773496251191,-375.832979,0.00025624,2]
[408363095,1773496251200,-228.6,0.00025712,14]
[408363096,1773496251209,-150.0,0.00025718,2]
[408363097,1773496251219,-150.0,0.00025718,2]
[408363098,1773496251229,-150.0,0.00025718,2]
[408363099,1773496251238,-163.69530948,0.00025843,14]
[408363100,1773496251247,-603.70215718,0.0002599,2]
[408363101,1773496251256,-217.49597155,0.00026,2]
[408363102,1773496251265,-204.6,0.00026101,2]
[408363103,1773496251275,-634.12321395,0.000263,2]
[408363104,1773496251283,-1092.80615958,0.000264,2]
[408363105,1773496251293,-1141.23,0.0002654,2]
[408363106,1773496251302,-2000.0,0.000266,2]
[408363107,1773496251311,-154.2,0.00026753,2]
[408363108,1773496251320,-2000.0,0.00027,2]
[408363109,1773496251329,-250.0,0.00027,2]
[408363110,1773496251339,-1039.62675581,0.00027,2]
[408363111,1773496251348,-530.0,0.00027,2]
[408363112,1773496251358,-696.0,0.00027,2]
[408363113,1773496251367,-151.0,0.00027,2]
[408363114,1773496251376,-2511.650479,0.0002701,2]
[408363115,1773496251385,-204.6,0.00027105,2]
[408363116,1773496251394,-2299.52002716,0.00027176,23]
[408363117,1773496251403,-278.0206408,0.00027308,2]
[408363118,1773496251413,-151.0,0.00027308,2]
[408363119,1773496251422,-151.0,0.00027308,2]
[408363120,1773496251431,-820.573515,0.00027308,2]
[408363121,1773496251441,-820.573515,0.00027308,2]
[408363122,1773496251450,-820.573515,0.00027308,2]
[408363123,1773496251460,-820.573515,0.00027308,2]
[408363124,1773496251469,-151.0,0.00027308,2]
[408363125,1773496251478,-217.225635,0.00027308,2]
[408363126,1773496251488,-150.0,0.00027369,2]
[408363127,1773496251498,-1000.0,0.00027397,20]
[408363128,1773496251508,-300.0,0.00027397,2]
[408363129,1773496251518,-151.0,0.00027397,2]
[408363130,1773496251527,-151.0,0.00027397,2]
[408363131,1773496251536,-151.0,0.00027397,2]
[408363132,1773496251545,-151.0,0.00027397,2]
[408363133,1773496251555,-237.032154,0.00027397,2]
[408363134,1773496251564,-13130.73,0.00027397,10]
[408363135,1773496251574,-10942.27,0.00027397,10]
[408363136,1773496251583,-202.34427051,0.000275,2]
[408363137,1773496251593,-552.67296002,0.000275,2]
[408363138,1773496251602,-3886.38039427,0.00027586,2]
[408363139,1773496251612,-232.0,0.00027779,120]
[408363140,1773496251621,-151.0,0.00027978,7]
[408363141,1773496251630,-160.0,0.00028,2]
[408363142,1773496251639,-562.77569817,0.00028,5]
[408363143,1773496251649,-643.0,0.00028,2]
[408363144,1773496251657,-8506.72021269,0.00028033,2]
[408363145,1773496251666,-620.0,0.00028535,2]
[408363146,1773496251675,-2463.0,0.00028535,2]
[408363147,1773496251684,-414.0,0.00028535,2]
[408363148,1773496251693,-3753.0,0.00028535,2]
[408363149,1773496251702,-2679.74858539,0.00028709,27]
[408363150,1773496251711,-150.0,0.00028718,2]
[408363152,1773496251720,-150.0,0.00028718,2]
[408363153,1773496251731,-4557.99,0.00028979,2]
[408363154,1773496251740,-1749.26129384,0.00029,2]
[408363155,1773496251749,-505.19260555,0.00029,2]
[408363156,1773496251758,-697.0,0.00029,2]
[408363157,1773496251768,-649.0,0.00029126,5]
[408363158,1773496251777,-363.5740728,0.00029157,2]
[408363159,1773496251786,-154.2,0.0002917,2]
[408363160,1773496251795,-717.0,0.00029206,5]
[408363161,1773496251805,-925.0,0.00029206,5]
[408363162,1773496251815,-238.75162218,0.0002999,2]
[408363163,1773496251824,-1566.2086529,0.0003,2]
[408363164,1773496251833,-2000.0,0.0003,3]
[408363165,1773496251842,-321.36244445,0.0003,2]
[408363166,1773496251851,-1829.42548111,0.0003,2]
[408363167,1773496251860,-579.79108557,0.0003,4]
[408363168,1773496251871,-164.08720237,0.0003,2]
[408363169,1773496251880,-1080.70503769,0.0003013,2]
[408363170,1773496251889,-638.21409835,0.0003013,2]
[408363171,1773496251898,-203.03181002,0.0003013,2]
[408363172,1773496251908,-587.390273,0.00030137,7]
[408363173,1773496251917,-587.390273,0.00030137,7]
[408363174,1773496251927,-587.390273,0.00030137,7]
[408363175,1773496251937,-587.390273,0.00030137,7]
[408363176,1773496251946,-587.390273,0.00030137,7]
[408363177,1773496251956,-587.390273,0.00030137,7]
[408363178,1773496251966,-587.390273,0.00030137,7]
[408363179,1773496251975,-587.390273,0.00030137,7]
[408363180,1773496251985,-587.390273,0.00030137,7]
[408363181,1773496251995,-587.390273,0.00030137,7]
[408363182,1773496252004,-587.390273,0.00030137,7]
[408363183,1773496252014,-587.390273,0.00030137,7]
[408363184,1773496252023,-587.390273,0.00030137,7]
[408363185,1773496252032,-587.390273,0.00030137,7]
[408363186,1773496252042,-587.390273,0.00030137,7]
[408363187,1773496252051,-587.390273,0.00030137,7]
[408363188,1773496252060,-151.0,0.00030137,7]
[408363189,1773496252069,-151.0,0.00030137,7]
[408363190,1773496252078,-820.573515,0.00030137,7]
[408363191,1773496252087,-820.573515,0.00030137,7]
[408363192,1773496252096,-820.573515,0.00030137,7]
[408363193,1773496252106,-820.573515,0.00030137,7]
[408363194,1773496252115,-151.0,0.00030137,7]
[408363195,1773496252124,-269.177652,0.00030137,7]
[408363196,1773496252133,-151.0,0.00030137,7]
[408363197,1773496252142,-151.0,0.00030137,7]
[408363198,1773496252156,-2869.78676393,0.00030242,31]
[408363199,1773496252165,-2000.0,0.000303,2]
[408363200,1773496252175,-151.0,0.00030807,7]
[408363201,1773496252184,-151.0,0.0003081,7]
[408363202,1773496252195,-151.0,0.0003081,7]
[408363203,1773496252204,-1619.49155391,0.0003084,2]
[408363204,1773496252214,-212.76784391,0.00030857,4]
[408363205,1773496252224,-500.0,0.00030873,5]
[408363206,1773496252233,-345.82853497,0.00031,5]
[408363207,1773496252242,-151.0,0.00031,7]
[408363208,1773496252253,-230.003363,0.00031,7]
[408363209,1773496252263,-230.003363,0.00031,7]
[408363210,1773496252273,-181.485896,0.00031,7]
[408363211,1773496252282,-230.003363,0.00031,7]
[408363212,1773496252292,-181.485896,0.00031,7]
[408363213,1773496252302,-230.003357,0.00031,7]
[408363214,1773496252311,-181.485896,0.00031,7]
[408363215,1773496252321,-587.390273,0.00031,7]
[408363216,1773496252330,-181.485899,0.00031,7]
[408363217,1773496252340,-587.390273,0.00031,7]
[408363218,1773496252350,-587.390273,0.00031,7]
[408363219,1773496252359,-587.390274,0.00031,7]
[408363220,1773496252368,-783.763292,0.00031,7]
[408363221,1773496252378,-783.763292,0.00031,7]
[408363222,1773496252387,-783.763292,0.00031,7]
[408363223,1773496252396,-783.763283,0.00031,7]
[408363224,1773496252405,-154.1201709,0.00031114,2]
[408363225,1773496252415,-8506.72021269,0.00031144,2]
[408363226,1773496252425,-245.0,0.00031323,14]
[408363227,1773496252434,-218.0,0.00031323,14]
[408363228,1773496252443,-198.69170064,0.000315,2]
[408363229,1773496252454,-150.0,0.000315,2]
[408363230,1773496252463,-151.0,0.00031535,7]
[408363231,1773496252472,-159.884788,0.00031535,7]
[408363232,1773496252482,-197.334425,0.00031535,7]
[408363233,1773496252491,-197.334425,0.00031535,7]
[408363234,1773496252501,-197.334425,0.00031535,7]
[408363235,1773496252510,-197.334425,0.00031535,7]
[408363236,1773496252520,-151.0,0.00031535,7]
[408363237,1773496252529,-620.0,0.00031535,2]
[408363238,1773496252538,-2463.0,0.00031535,2]
[408363239,1773496252547,-414.0,0.00031535,2]
[408363240,1773496252556,-3753.0,0.00031535,2]
[408363241,1773496252565,-154.2,0.00031587,2]
[408363242,1773496252575,-150.0,0.00031718,2]
[408363243,1773496252584,-3060.17325164,0.00031775,36]
[408363244,1773496252593,-162.48,0.000318,14]
[408363245,1773496252602,-159.69,0.000318,7]
[408363246,1773496252612,-155.36,0.000318,7]
[408363247,1773496252621,-446.0,0.00031891,2]
[408363248,1773496252631,-213.0,0.00031891,2]
[408363249,1773496252640,-200.0,0.00031921,7]
[408363250,1773496252649,-178.0,0.00031921,7]
[408363251,1773496252658,-13380.0,0.00032,120]
[408363252,1773496252667,-375.832979,0.00032,7]
[408363253,1773496252676,-155.904935,0.00032,7]
[408363254,1773496252685,-375.832979,0.00032,7]
[408363255,1773496252694,-375.832979,0.00032,7]
[408363256,1773496252704,-375.832979,0.00032,7]
[408363257,1773496252713,-151.0,0.00032,7]
[408363258,1773496252722,-151.0,0.00032,7]
[408363259,1773496252732,-153.435431,0.00032,7]
[408363260,1773496252741,-151.0,0.00032,7]
[408363261,1773496252751,-151.0,0.00032,7]
[408363262,1773496252760,-264.287025,0.00032,7]
[408363263,1773496252769,-553.988829,0.00032,7]
[408363264,1773496252779,-553.988829,0.00032,7]
[408363265,1773496252788,-553.988829,0.00032,7]
[408363266,1773496252797,-553.988829,0.00032,7]
[408363267,1773496252806,-151.0,0.00032,7]
[408363268,1773496252815,-645.123573,0.00032,7]
[408363269,1773496252824,-645.123573,0.00032,7]
[408363270,1773496252833,-645.123573,0.00032,7]
[408363271,1773496252842,-645.123573,0.00032,7]
[408363272,1773496252851,-3886.38039427,0.00032029,2]
[408363273,1773496252861,-1000.0,0.00032242,5]
[408363274,1773496252870,-900.2669457,0.000323,2]
[408363275,1773496252879,-522.0,0.00032377,2]
[408363276,1773496252888,-258.0,0.00032407,7]
[408363277,1773496252897,-444.0,0.00032407,2]
[408363278,1773496252907,-442.0,0.00032496,30]
[408363279,1773496252915,-820.0,0.00032509,30]
[408363280,1773496252925,-507.0,0.0003275,16]
[408363281,1773496252934,-1733.48303159,0.0003287,4]
[408363282,1773496252943,-229.22282381,0.0003287,2]
[408363283,1773496252952,-151.0,0.00032877,7]
[408363284,1773496252961,-151.0,0.00032877,7]
[408363285,1773496252970,-151.0,0.00032877,7]
[408363286,1773496252979,-216.084858,0.00032877,7]
[408363287,1773496252989,-151.0,0.00032877,7]
[408363288,1773496252998,-237.367471,0.00032877,7]
[408363289,1773496253007,-838.13,0.000329,2]
[408363290,1773496253016,-563.956309,0.00033,14]
[408363291,1773496253025,-164.12,0.00033,30]
[408363292,1773496253034,-2823.75,0.00033,14]
[408363293,1773496253043,-154.6486644,0.00033,2]
[408363294,1773496253052,-211.0,0.00033063,14]
[408363295,1773496253061,-184.0,0.00033063,14]
[408363296,1773496253070,-3402.5160437,0.00033308,42]
[408363297,1773496253079,-1219.95789832,0.000335,2]
[408363298,1773496253088,-150.0,0.00033567,14]
[408363299,1773496253098,-150.0,0.00033567,14]
[408363300,1773496253107,-217.0,0.00033567,14]
[408363301,1773496253117,-150.0,0.00033567,14]
[408363302,1773496253126,-150.0,0.00033567,14]
[408363303,1773496253136,-225.0,0.00033567,14]
[408363304,1773496253146,-1500.0,0.00033612,5]
[408363305,1773496253279,-2000.0,0.00034,2]
[408363306,1773496253289,-154.2,0.00034005,2]
[408363307,1773496253299,-8506.72021269,0.00034256,2]
[408363308,1773496253308,-363.5740728,0.00034318,2]
[408363309,1773496253318,-150.0,0.00034475,7]
[408363310,1773496253327,-1743.68912336,0.0003449,2]
[408363311,1773496253336,-620.0,0.00034535,2]
[408363312,1773496253345,-2463.0,0.00034535,2]
[408363313,1773496253355,-3753.0,0.00034535,2]
[408363314,1773496253364,-151.0,0.00034632,7]
[408363315,1773496253373,-3440.59791789,0.0003484,47]
[408363316,1773496253383,-418.66869639,0.0003488,120]
[408363317,1773496253393,-2000.0,0.00034982,5]
[408363318,1773496253403,-1931.15178419,0.00035,2]
[408363319,1773496253412,-838.13,0.00035,2]
[408363320,1773496253422,-181.11095633,0.00035,20]
[408363321,1773496253431,-174.37270465,0.00035236,30]
[408363322,1773496253441,-150.0,0.00035236,30]
[408363323,1773496253450,-561.44197154,0.00035616,7]
[408363324,1773496253460,-151.0,0.00035616,7]
[408363325,1773496253469,-151.0,0.00035616,7]
[408363326,1773496253478,-151.0,0.00035616,7]
[408363327,1773496253488,-151.0,0.00035616,7]
[408363328,1773496253497,-151.0,0.00035616,7]
[408363329,1773496253507,-151.0,0.00035616,7]
[408363330,1773496253516,-151.0,0.00035616,7]
[408363331,1773496253525,-252.103207,0.00035616,7]
[408363332,1773496253534,-810.35785509,0.00036,2]
[408363333,1773496253544,-1706.10755476,0.00036,2]
[408363334,1773496253554,-512.0,0.00036192,2]
[408363335,1773496253564,-2000.0,0.00036352,5]
[408363336,1773496253574,-3821.02258413,0.00036373,53]
[408363337,1773496253583,-151.0,0.00036422,7]
[408363338,1773496253593,-151.0,0.00036422,7]
[408363339,1773496253602,-154.2,0.00036422,2]
[408363340,1773496253612,-3886.38039427,0.00036471,2]
[408363341,1773496253621,-1622.51597032,0.000368,2]
[408363342,1773496253631,-365.0,0.00037,2]
[408363343,1773496253640,-365.09400311,0.00037,3]
[408363344,1773496253649,-166.91861219,0.00037,2]
[408363345,1773496253659,-154.1201709,0.00037202,2]
[408363346,1773496253668,-838.13,0.000373,2]
[408363347,1773496253679,-8506.72021269,0.00037367,2]
[408363348,1773496253688,-2463.0,0.00037535,2]
[408363349,1773496253698,-3753.0,0.00037535,2]
[408363350,1773496253707,-2000.0,0.000377,2]
[408363351,1773496253717,-820.573515,0.000377,7]
[408363352,1773496253726,-820.573515,0.000377,7]
[408363353,1773496253735,-820.573515,0.000377,7]
[408363354,1773496253745,-820.573515,0.000377,7]
[408363355,1773496253756,-151.0,0.000377,7]
[408363356,1773496253765,-151.0,0.000377,7]
[408363357,1773496253774,-203.68001885,0.0003788,2]
[408363358,1773496253784,-500.0,0.00037905,120]
[408363359,1773496253793,-500.0,0.00037905,120]
[408363360,1773496253803,-3966.27639292,0.00037906,58]
[408363361,1773496253812,-526.0,0.00038,5]
[408363362,1773496253821,-1141.23,0.00038321,2]
[408363363,1773496253830,-1334.10189375,0.00038569,4]
[408363364,1773496253839,-1042.98911178,0.000387,2]
[408363365,1773496253848,-151.0,0.000387,120]
[408363366,1773496253858,-154.2,0.0003884,30]
[408363367,1773496253867,-475.54190707,0.000389,120]
[408363368,1773496253876,-1538.51322546,0.0003899,10]
[408363369,1773496253886,-1259.38613718,0.00039,120]
[408363370,1773496253895,-1448.37025617,0.000391,120]
[408363371,1773496253905,-838.13,0.000393,30]
[408363372,1773496253914,-4201.44725038,0.00039439,64]
[408363373,1773496253923,-363.5740728,0.00039479,2]
[408363374,1773496253932,-430.44596234,0.0004,7]
[408363375,1773496253942,-1403.07287685,0.0004,120]
[408363376,1773496253952,-1000.0,0.0004,2]
[408363377,1773496253961,-999.29553985,0.0004,7]
[408363378,1773496253970,-813.85331129,0.0004,3]
[408363379,1773496253979,-393.0767285,0.0004,2]
[408363380,1773496253988,-1570.69623108,0.0004,2]
[408363381,1773496253998,-223.88211223,0.0004,2]
[408363382,1773496254007,-962.67903836,0.0004,2]
[408363383,1773496254017,-316.75357898,0.0004,2]
[408363384,1773496254026,-162.6488133,0.0004,2]
[408363385,1773496254035,-316.39733744,0.0004,120]
[408363386,1773496254045,-151.0,0.0004,120]
[408363387,1773496254055,-375.832979,0.0004,120]
[408363388,1773496254064,-375.832979,0.0004,120]
[408363389,1773496254073,-375.832979,0.0004,120]
[408363390,1773496254082,-375.832974,0.0004,120]
[408363391,1773496254093,-151.24,0.0004,2]
[408363392,1773496254103,-151.24,0.0004,2]
[408363393,1773496254113,-151.24,0.0004,2]
[408363394,1773496254122,-151.24,0.0004,2]
[408363395,1773496254132,-151.24,0.0004,2]
[408363396,1773496254142,-151.24,0.0004,2]
[408363397,1773496254156,-151.24,0.0004,2]
[408363398,1773496254167,-151.24,0.0004,2]
[408363399,1773496254178,-151.24,0.0004,2]
[408363400,1773496254189,-151.24,0.0004,2]
[408363401,1773496254198,-151.24,0.0004,2]
[408363402,1773496254208,-155.36,0.000401,30]
[408363403,1773496254219,-2823.75,0.000401,14]
[408363404,1773496254228,-229.13,0.000403,30]
[408363405,1773496254239,-8506.72021269,0.00040478,15]
[408363406,1773496254249,-1989.688,0.00040535,2]
[408363407,1773496254259,-3753.0,0.00040535,2]
[408363408,1773496254268,-507.0,0.00040625,23]
[408363409,1773496254277,-58104.76,0.0004088,120]
[408363410,1773496254286,-553.988829,0.0004088,120]
[408363411,1773496254296,-553.988829,0.0004088,120]
[408363412,1773496254305,-553.988829,0.0004088,120]
[408363413,1773496254314,-553.988829,0.0004088,120]
[408363414,1773496254324,-151.0,0.0004088,120]
[408363415,1773496254333,-645.123573,0.0004088,120]
[408363416,1773496254342,-645.123573,0.0004088,120]
[408363417,1773496254351,-645.123573,0.0004088,120]
[408363418,1773496254360,-645.123565,0.0004088,120]
[408363419,1773496254370,-151.0,0.0004088,120]
[408363420,1773496254379,-197.334425,0.0004088,120]
[408363421,1773496254389,-197.334425,0.0004088,120]
[408363422,1773496254398,-197.334425,0.0004088,120]
[408363423,1773496254408,-197.334425,0.0004088,120]
[408363424,1773496254417,-151.0,0.0004088,60]
[408363425,1773496254426,-1970.09928554,0.000409,2]
[408363426,1773496254436,-3886.38039427,0.00040914,28]
[408363427,1773496254445,-1384.0,0.0004095,60]
[408363428,1773496254454,-435.74974914,0.00041,5]
[408363429,1773496254464,-153.08089384,0.00041068,22]
[408363430,1773496254473,-200.0,0.00041096,120]
[408363431,1773496254483,-50000.0,0.00041096,60]
[408363432,1773496254492,-449.85,0.00041096,60]
[408363433,1773496254502,-30000.0,0.00041096,60]
[408363434,1773496254512,-820.573515,0.00041096,120]
[408363435,1773496254521,-820.573515,0.00041096,120]
[408363436,1773496254531,-820.573515,0.00041096,120]
[408363437,1773496254540,-820.573522,0.00041096,120]
[408363438,1773496254549,-151.0,0.00041096,120]
[408363439,1773496254559,-151.0,0.00041096,120]
[408363440,1773496254568,-281.21,0.000411,30]
[408363441,1773496254578,-153.66392202,0.000412,30]
[408363442,1773496254587,-154.2,0.00041257,30]
[408363443,1773496254598,-2000.0,0.000414,2]
[408363444,1773496254617,-2431.489,0.00041694,62]
[408363445,1773496254627,-281.21,0.000417,30]
[408363446,1773496254637,-1110.02994207,0.00042,2]
[408363447,1773496254646,-500.0,0.00042,2]
[408363448,1773496254656,-152.89362605,0.00042,60]
[408363449,1773496254665,-1374.29043,0.0004201,2]
[408363450,1773496254676,-582.0,0.000421,3]
[408363451,1773496254685,-295.93039054,0.00042232,74]
[408363452,1773496254694,-307.2302659,0.00042258,74]
[408363453,1773496254704,-1384.0,0.000423,60]
[408363454,1773496254714,-1718.97230879,0.000425,120]
[408363455,1773496254724,-2500.00299587,0.000425,120]
[408363456,1773496254733,-151.0,0.000425,120]
[408363457,1773496254742,-281.21,0.000425,30]
[408363458,1773496254752,-500.0,0.0004282,120]
[408363459,1773496254761,-500.0,0.0004282,120]
[408363460,1773496254771,-307.31607308,0.0004282,2]
[408363461,1773496254780,-300.0,0.0004282,2]
[408363462,1773496254790,-300.0,0.0004282,2]
[408363463,1773496254800,-300.0,0.0004282,2]
[408363464,1773496254809,-300.0,0.0004282,2]
[408363465,1773496254818,-416.45217614,0.0004282,2]
[408363466,1773496254828,-300.0,0.0004282,2]
[408363467,1773496254837,-300.0,0.0004282,2]
[408363468,1773496254846,-706.7760719,0.0004282,2]
[408363469,1773496254855,-300.0,0.0004282,2]
[408363470,1773496254865,-300.0,0.0004282,2]
[408363471,1773496254874,-1085.86135591,0.0004282,2]
[408363472,1773496254885,-300.0,0.0004282,2]
[408363473,1773496254896,-300.0,0.0004282,2]
[408363474,1773496254906,-300.0,0.0004282,2]
[408363475,1773496254916,-300.0,0.0004282,2]
[408363476,1773496254925,-300.0,0.0004282,2]
[408363477,1773496254934,-300.0,0.0004282,2]
[408363478,1773496254944,-300.0,0.0004282,2]
[408363479,1773496254953,-300.0,0.0004282,2]
[408363480,1773496254962,-300.0,0.0004282,2]
[408363481,1773496254972,-300.0,0.0004282,2]
[408363482,1773496254982,-300.0,0.0004282,2]
[408363483,1773496254991,-300.0,0.0004282,2]
[408363484,1773496255000,-300.0,0.0004282,2]
[408363485,1773496255009,-300.0,0.0004282,2]
[408363486,1773496255018,-300.0,0.0004282,2]
[408363487,1773496255029,-300.0,0.0004282,2]
[408363488,1773496255041,-300.0,0.0004282,2]
[408363489,1773496255051,-303.20588711,0.0004282,2]
[408363490,1773496255060,-300.0,0.0004282,2]
[408363491,1773496255069,-300.0,0.0004282,2]
[408363492,1773496255079,-1050.14169216,0.0004282,2]
[408363493,1773496255088,-307.09317041,0.0004282,2]
[408363494,1773496255097,-300.0,0.0004282,2]
[408363495,1773496255106,-857.47271976,0.0004282,2]
[408363496,1773496255115,-300.0,0.0004282,2]
[408363497,1773496255124,-300.0,0.0004282,2]
[408363498,1773496255133,-300.0,0.0004282,2]
[408363499,1773496255142,-300.0,0.0004282,2]
[408363500,1773496255156,-308.36419653,0.0004282,2]
[408363501,1773496255165,-300.0,0.0004282,2]
[408363502,1773496255175,-300.0,0.0004282,2]
[408363503,1773496255184,-300.0,0.0004282,2]
[408363504,1773496255193,-460.10536322,0.0004282,2]
[408363505,1773496255203,-300.0,0.0004282,2]
[408363506,1773496255213,-300.0,0.0004282,2]
[408363507,1773496255223,-300.0,0.0004282,2]
[408363508,1773496255234,-448.21273408,0.0004282,2]
[408363509,1773496255243,-300.0,0.0004282,2]
[408363510,1773496255253,-300.0,0.0004282,2]
[408363511,1773496255263,-302.45218568,0.0004282,2]
[408363512,1773496255272,-300.0,0.0004282,2]
[408363513,1773496255282,-300.0,0.0004282,2]
[408363514,1773496255291,-300.0,0.0004282,2]
[408363515,1773496255301,-307.31607308,0.0004282,2]
[408363516,1773496255312,-520.42881649,0.0004282,2]
[408363517,1773496255321,-300.0,0.0004282,2]
[408363518,1773496255332,-300.0,0.0004282,2]
[408363519,1773496255342,-300.0,0.0004282,2]
[408363520,1773496255352,-300.0,0.0004282,2]
[408363521,1773496255362,-416.45217614,0.0004282,2]
[408363522,1773496255372,-300.0,0.0004282,2]
[408363523,1773496255381,-300.0,0.0004282,2]
[408363524,1773496255391,-300.0,0.0004282,2]
[408363525,1773496255400,-300.0,0.0004282,2]
[408363526,1773496255409,-1085.86135591,0.0004282,2]
[408363527,1773496255419,-300.0,0.0004282,2]
[408363528,1773496255428,-300.0,0.0004282,2]
[408363529,1773496255437,-300.0,0.0004282,2]
[408363530,1773496255447,-300.0,0.0004282,2]
[408363531,1773496255456,-300.0,0.0004282,2]
[408363532,1773496255465,-300.0,0.0004282,2]
[408363533,1773496255474,-300.0,0.0004282,2]
[408363534,1773496255483,-300.0,0.0004282,2]
[408363535,1773496255492,-300.0,0.0004282,2]
[408363536,1773496255502,-300.0,0.0004282,2]
[408363537,1773496255512,-300.0,0.0004282,2]
[408363538,1773496255521,-300.0,0.0004282,2]
[408363539,1773496255535,-300.0,0.0004282,2]
[408363540,1773496255544,-300.0,0.0004282,2]
[408363541,1773496255553,-300.0,0.0004282,2]
[408363542,1773496255562,-300.0,0.0004282,2]
[408363543,1773496255572,-300.0,0.0004282,2]
[408363544,1773496255581,-303.20588711,0.0004282,2]
[408363545,1773496255591,-300.0,0.0004282,2]
[408363546,1773496255601,-300.0,0.0004282,2]
[408363547,1773496255611,-300.0,0.0004282,2]
[408363548,1773496255619,-1050.14169216,0.0004282,2]
[408363549,1773496255628,-307.09317041,0.0004282,2]
[408363550,1773496255638,-300.0,0.0004282,2]
[408363551,1773496255710,-857.47271976,0.0004282,2]
[408363552,1773496255719,-300.0,0.0004282,2]
[408363553,1773496255727,-300.0,0.0004282,2]
[408363554,1773496255736,-300.0,0.0004282,2]
[408363555,1773496255745,-300.0,0.0004282,2]
[408363556,1773496255754,-308.36419653,0.0004282,2]
[408363557,1773496255763,-300.0,0.0004282,2]
[408363558,1773496255772,-300.0,0.0004282,2]
[408363559,1773496255780,-300.0,0.0004282,2]
[408363560,1773496255789,-460.10536322,0.0004282,2]
[408363561,1773496255798,-300.0,0.0004282,2]
[408363562,1773496255807,-300.0,0.0004282,2]
[408363563,1773496255815,-300.0,0.0004282,2]
[408363564,1773496255824,-448.21273408,0.0004282,2]
[408363565,1773496255833,-300.0,0.0004282,2]
[408363566,1773496255841,-300.0,0.0004282,2]
[408363567,1773496255850,-302.45218568,0.0004282,2]
[408363568,1773496255859,-300.0,0.0004282,2]
[408363569,1773496255868,-300.0,0.0004282,2]
[408363570,1773496255877,-300.0,0.0004282,2]
[408363571,1773496255886,-520.42881649,0.0004282,2]
[408363572,1773496255895,-307.31607308,0.0004282,2]
[408363573,1773496255904,-300.0,0.0004282,2]